[Event "World Junior U20 Girls 2018"]
[Site "Gebze"]
[Date "2018.09.11"]
[Round "7"]
[White "Catal, Uktenur"]
[Black "Ayan, Bengu Sena"]
[Result "1-0"]
[ECO "D15"]
[WhiteElo "1809"]
[BlackElo "1976"]
[Annotator "NA"]
[PlyCount "109"]
[EventDate "2018.09.05"]
[EventType "swiss"]
[EventCountry "TUR"]
[SourceTitle "playchess.com"]
[Source "ChessBase"]
[SourceQuality "1"]
[TimeControl "40/5400+30:1800+30"]

1. d4 {[%emt 0:00:30]} d5 {[%emt 0:00:30]} 2. c4 {[%emt 0:00:30]} c6 {[%emt 0:00:30]} 3. Nf3 {[%emt 0:00:00]} Nf6 {[%emt 0:00:00]} 4. e3 {[%emt 0:00:00]} a6 {[%emt 0:00:00]} 5. Nc3 {[%emt 0:00:00]} b5 {[%emt 0:00:00]} 6. b3 {[%emt 0:00:00]} e6 {[%emt 0:02:00] D15: Slav Defence: 4 Nc3 a6 and gambit lines after 4 Nc3 dxc4} (6... Bg4 7. cxd5 cxd5 8. Bd3 e6 9. a4 b4 10. Ne2 Bxf3 11. gxf3 Be7 12. Bd2 O-O 13. Rc1 Qd7 14. Qc2 Bd6 {1-0 (28) Aronian,L (2805)-Laznicka,V (2647) Riadh 2017}) 7. Bb2 {[%emt 0:00:30]} Nbd7 {[%emt 0:03:30]} 8. c5 {[%emt 0:08:30]} g6 {[%emt 0:01:30]} 9. Be2 $146 {[%emt 0:00:30]} ({Predecessor:} 9. Bd3 Bg7 10. h3 O-O 11. Qc2 Qe7 12. O-O Ne8 13. b4 e5 14. dxe5 Nxe5 15. Nxe5 Bxe5 {1-0 (42) Gupta,A (2619)-Palit,S (2418) Kanpur 2014}) 9... Bg7 {[%emt 0:00:30]} 10. O-O {[%emt 0:00:30]} O-O {[%emt 0:00:30]} 11. b4 {[%emt 0:00:30]} Qc7 {[%emt 0:02:30]} 12. Qc2 {[%emt 0:03:30]} a5 {[%emt 0:06:30]} 13. a3 {[%emt 0:01:30]} Bb7 {[%emt 0:01:30]} 14. Rfc1 {[%emt 0:11:30]} Rfc8 {[%emt 0:06:30]} 15. Qd2 {[%emt 0:26:30]} axb4 {[%emt 0:10:30]} 16. axb4 {[%emt 0:00:00]} Rxa1 {[%emt 0:00:30]} 17. Rxa1 {[%emt 0:00:00]} Ra8 {[%emt 0:00:30]} 18. Qc2 {[%emt 0:01:30]} Qc8 {[%emt 0:04:30]} 19. Nd2 {[%emt 0:02:30]} Ne8 {[%emt 0:03:30]} 20. Rxa8 {[%emt 0:02:30]} Bxa8 {[%emt 0:00:30]} 21. Nb3 {[%emt 0:00:30]} e5 {[%emt 0:02:30]} 22. Nb1 {[%emt 0:02:30]} Nc7 {[%emt 0:00:30]} 23. Na5 {[%emt 0:11:30]} Ne6 {[%emt 0:06:30]} 24. dxe5 {[%emt 0:01:30]} Nxe5 {[%emt 0:01:30]} 25. Nd2 {[%emt 0:00:30]} Qc7 {[%emt 0:02:30]} 26. Ndb3 {[%emt 0:01:30]} Bb7 {[%emt 0:02:30]} 27. Nd4 $14 {[%emt 0:02:30]} Bc8 {[%emt 0:03:30]} 28. f4 {[%emt 0:05:22]} Nxd4 {[%emt 0:01:30]} 29. Bxd4 {[%emt 0:00:10]} Nd7 {[%emt 0:06:30]} (29... Nc4 $1 $11) 30. Bxg7 {[%emt 0:01:16]} Kxg7 {[%emt 0:00:30]} 31. Qc3+ {[%emt 0:00:30]} Kg8 {[%emt 0:01:30]} 32. Bg4 {[%emt 0:02:54]} Nf8 {[%emt 0:07:30]} 33. Bxc8 {[%emt 0:01:09]} Qxc8 {[%emt 0:00:00]} 34. Qe5 {[%emt 0:00:32]} Nd7 {[%emt 0:03:00]} 35. Qd6 {[%emt 0:00:59]} Nb8 {[%emt 0:00:30]} 36. Kf2 {[%emt 0:00:18]} h5 {[%emt 0:01:30]} 37. h3 {[%emt 0:00:57]} Kg7 {[%emt 0:03:25]} 38. Qe5+ {[%emt 0:04:03]} Kg8 {[%emt 0:00:44]} 39. Qd6 {[%emt 0:01:10]} Kg7 {[%emt 0:01:54]} 40. Qe5+ {[%emt 0:00:00]} Kg8 {[%emt 0:00:00]} 41. Qf6 {[%emt 0:00:40]} Qd7 {[%emt 0:05:27]} 42. g4 {[%emt 0:04:30]} hxg4 {[%emt 0:03:30]} 43. hxg4 {[%emt 0:00:30]} Kh7 {[%emt 0:03:30]} 44. f5 {[%emt 0:00:30]} gxf5 {[%emt 0:15:30]} 45. gxf5 {[%emt 0:00:30]} d4 {[%emt 0:08:09]} 46. exd4 {[%emt 0:10:30]} Qd5 {[%emt 0:00:28]} 47. Ke3 {[%emt 0:01:30]} Kg8 {[%emt 0:04:18]} 48. Qe5 {[%emt 0:02:30]} Qd8 {[%emt 0:00:25]} 49. f6 {[%emt 0:00:30]} Kf8 {[%emt 0:03:17]} 50. Kd3 {[%emt 0:02:44]} Nd7 {[%emt 0:04:10]} 51. Qd6+ {[%emt 0:00:26]} Kg8 {[%emt 0:00:17]} 52. Nxc6 {[%emt 0:01:26]} Qa8 {[%emt 0:00:20]} 53. Qxd7 {[%emt 0:00:44]} Qa3+ {[%emt 0:00:10]} 54. Ke4 {[%emt 0:00:09]} Qb3 {[%emt 0:00:23]} 55. Qg4+ {[%emt 0:00:19]} 1-0

[Event "World Junior U20 Girls 2018"]
[Site "Gebze"]
[Date "2018.09.11"]
[Round "7"]
[White "Caxita, Esperanca"]
[Black "Anandpara Jayendra Saloni"]
[Result "1-0"]
[ECO "B92"]
[WhiteElo "1803"]
[BlackElo "1326"]
[Annotator "NA"]
[PlyCount "66"]
[EventDate "2018.09.05"]
[EventType "swiss"]
[EventCountry "TUR"]
[SourceTitle "playchess.com"]
[Source "ChessBase"]
[SourceQuality "1"]
[TimeControl "40/5400+30:1800+30"]

1. e4 {[%emt 0:00:30]} c5 {[%emt 0:00:30]} 2. Nf3 {[%emt 0:00:30]} d6 {[%emt 0:00:00]} 3. d4 {[%emt 0:00:00]} cxd4 {[%emt 0:00:00]} 4. Nxd4 {[%emt 0:00:00]} Nf6 {[%emt 0:00:00]} 5. Nc3 {[%emt 0:00:30]} a6 {[%emt 0:00:00]} 6. Be2 {[%emt 0:01:30]} e5 {[%emt 0:01:30]} 7. Nb3 {[%emt 0:01:30]} Be6 {[%emt 0:05:30]} 8. Bg5 {[%emt 0:00:30]} Nbd7 {[%emt 0:01:30]} 9. O-O {[%emt 0:01:30]} Be7 {[%emt 0:00:30]} 10. Qd2 {[%emt 0:02:30]} b5 {[%emt 0:01:30] B92: Sicilian Najdorf: 6 Be2} (10... O-O 11. f3 Rc8 12. Rfd1 Qc7 13. Kh1 Rfd8 14. Rac1 Nb6 15. Bxf6 Bxf6 16. Nd5 Bxd5 17. exd5 h6 18. Qd3 {0-1 (67) Lacina,A (2227)-Vlasak,L (2308) Klatovy 2011}) 11. Qe3 $146 {[%emt 0:10:30]} ({Predecessor:} 11. a3 O-O 12. Rad1 Rc8 13. h3 Qc7 14. Be3 Rfd8 15. Qe1 Nb6 16. f3 d5 17. exd5 Nfxd5 18. Bd2 Nxc3 19. Bxc3 {0-1 (25) Janjic,J (1981)-Nenezic,D (2116) Sarajevo 2018}) 11... Qb6 {[%emt 0:18:30]} 12. Qf3 {[%emt 0:16:30]} Bg4 {[%emt 0:10:30]} 13. Qd3 {[%emt 0:01:30]} Bxe2 {[%emt 0:00:30]} 14. Nxe2 {[%emt 0:01:30]} Qc6 {[%emt 0:10:30]} 15. Ng3 {[%emt 0:00:30]} g6 {[%emt 0:07:30]} 16. c3 {[%emt 0:03:30]} h5 {[%emt 0:08:30]} 17. h4 {[%emt 0:02:30]} Nh7 {[%emt 0:00:30]} 18. Bxe7 {[%emt 0:00:30]} Kxe7 {[%emt 0:00:30]} 19. Rfd1 {[%emt 0:00:30]} Rad8 {[%emt 0:00:30]} 20. Qe3 {[%emt 0:00:30]} Nc5 {[%emt 0:09:30]} 21. Rd2 {[%emt 0:07:30]} Ne6 $16 {[%emt 0:02:30]} (21... Nf6 $11 {keeps the balance.}) 22. Rad1 {[%emt 0:01:30]} Nf6 {[%emt 0:06:12]} 23. Qa7+ {[%emt 0:01:30]} Rd7 {[%emt 0:06:43]} 24. Na5 {[%emt 0:01:30]} Rxa7 {[%emt 0:03:33]} 25. Nxc6+ {[%emt 0:00:30]} Kf8 {[%emt 0:00:20]} 26. Nxa7 {[%emt 0:00:00]} Nc5 {[%emt 0:00:59]} 27. Rxd6 {[%emt 0:01:00]} Nfxe4 {[%emt 0:01:02]} 28. Nxe4 {[%emt 0:00:30]} Nxe4 {[%emt 0:00:00]} 29. Rxa6 {[%emt 0:00:30]} Kg7 {[%emt 0:00:16]} 30. Nc6 {[%emt 0:00:00]} Re8 {[%emt 0:00:52]} 31. Rd5 {[%emt 0:01:00]} Nf6 {[%emt 0:01:10]} 32. Rxe5 {[%emt 0:00:30]} Rxe5 {[%emt 0:00:34]} 33. Nxe5 {[%emt 0:00:00]} Ng8 {[%emt 0:01:10]} 1-0

[Event "World Junior U20 Girls 2018"]
[Site "Gebze"]
[Date "2018.09.11"]
[Round "7"]
[White "De Silva, Tenara"]
[Black "Dwilewicz, Katarzyna"]
[Result "1/2-1/2"]
[ECO "C45"]
[WhiteElo "1764"]
[BlackElo "2081"]
[Annotator "NA"]
[PlyCount "54"]
[EventDate "2018.09.05"]
[EventType "swiss"]
[EventCountry "TUR"]
[SourceTitle "playchess.com"]
[Source "ChessBase"]
[SourceQuality "1"]
[TimeControl "40/5400+30:1800+30"]

1. e4 {[%emt 0:00:30]} e5 {[%emt 0:00:30]} 2. Nf3 {[%emt 0:00:00]} Nc6 {[%emt 0:00:30]} 3. d4 {[%emt 0:00:00]} exd4 {[%emt 0:00:00]} 4. Nxd4 {[%emt 0:00:00]} Nf6 {[%emt 0:00:00]} 5. Nxc6 {[%emt 0:01:00]} bxc6 {[%emt 0:00:30]} 6. Bd3 {[%emt 0:00:30]} d5 {[%emt 0:00:30]} 7. Qe2 {[%emt 0:01:30]} dxe4 {[%emt 0:06:30] C45: Scotch Game} 8. Bxe4 {[%emt 0:01:30]} Nxe4 {[%emt 0:01:30]} 9. Qxe4+ {[%emt 0:00:30]} Qe7 {[%emt 0:03:30]} 10. Qxe7+ {[%emt 0:05:30]} Bxe7 {[%emt 0:00:30]} 11. Bf4 {[%emt 0:01:30]} Rb8 {[%emt 0:07:30]} (11... Bf5 12. Bxc7 Bxc2 13. Nc3 O-O 14. Rc1 Bf5 15. O-O {½-½ (43) Nepomniachtchi,I (2751)-Anand,V (2783) Saint Louis 2017}) 12. b3 {[%emt 0:12:30]} Bf6 $146 {[%emt 0:09:30]} ({Predecessor:} 12... Bf5 13. Nd2 Bb4 14. O-O-O Rb7 15. Nc4 {1-0 (31) Nielsen,N (2245)-Ochsner,T (2275) Denmark 1986}) 13. c3 {[%emt 0:00:30]} O-O {[%emt 0:01:30]} 14. O-O {[%emt 0:03:30]} Ba6 {[%emt 0:01:30]} 15. Rc1 {[%emt 0:03:30]} Rbd8 {[%emt 0:08:30]} 16. Nd2 {[%emt 0:19:30]} Rfe8 {[%emt 0:01:30]} 17. Nc4 {[%emt 0:06:30]} Rd3 {[%emt 0:09:30]} 18. Re1 {[%emt 0:08:30]} Rxe1+ {[%emt 0:09:30]} 19. Rxe1 {[%emt 0:00:30]} h6 {[%emt 0:00:30]} 20. Ne5 {[%emt 0:09:30]} Rxc3 {[%emt 0:01:30]} 21. Nd7 {[%emt 0:00:30]} Bd3 {[%emt 0:17:30]} 22. Re8+ {[%emt 0:00:00]} Kh7 {[%emt 0:00:05]} 23. Nf8+ {[%emt 0:00:00]} Kg8 {[%emt 0:00:08]} 24. Nd7+ {[%emt 0:00:30]} Kh7 {[%emt 0:00:31]} 25. Nf8+ {[%emt 0:00:30]} Kg8 {[%emt 0:00:30]} 26. Nd7+ {[%emt 0:00:00]} Kh7 {[%emt 0:00:00]} 27. Nf8+ {[%emt 0:00:00]} Kg8 $14 {[%emt 0:00:00]} 1/2-1/2

[Event "World Junior U20 Girls 2018"]
[Site "Gebze"]
[Date "2018.09.11"]
[Round "7"]
[White "Huttl, Sofie"]
[Black "Bail, Ellen Larissa"]
[Result "1-0"]
[ECO "B38"]
[WhiteElo "1727"]
[BlackElo "1832"]
[Annotator "NA"]
[PlyCount "107"]
[EventDate "2018.09.05"]
[EventType "swiss"]
[EventCountry "TUR"]
[SourceTitle "playchess.com"]
[Source "ChessBase"]
[SourceQuality "1"]
[TimeControl "40/5400+30:1800+30"]

1. e4 {[%emt 0:00:30]} c5 {[%emt 0:00:30]} 2. Nf3 {[%emt 0:00:00]} g6 {[%emt 0:00:30]} 3. d4 {[%emt 0:00:00]} cxd4 {[%emt 0:00:00]} 4. Nxd4 {[%emt 0:00:00]} Nc6 {[%emt 0:00:00]} 5. c4 {[%emt 0:01:00]} Bg7 {[%emt 0:01:30]} 6. Be3 {[%emt 0:00:30]} d6 {[%emt 0:02:30]} 7. Nc3 {[%emt 0:00:30]} Nf6 {[%emt 0:02:30]} 8. Be2 {[%emt 0:03:30]} O-O {[%emt 0:01:30]} 9. O-O {[%emt 0:00:30]} Bd7 {[%emt 0:07:30]} 10. Qd2 {[%emt 0:09:30]} Rc8 {[%emt 0:03:30]} 11. f3 {[%emt 0:08:30]} Nxd4 {[%emt 0:05:30] B38: Sicilian: Maroczy Bind with 5...Bg7 and 7...0-0} 12. Bxd4 {[%emt 0:00:30] LiveBook: 7 Games} Be6 {[%emt 0:00:30]} 13. Nd5 $146 {[%emt 0:01:30]} ({Predecessor:} 13. b3 Qa5 14. Rfd1 Rfd8 15. Bf1 a6 16. Kh1 Nh5 17. Ne2 Qxd2 18. Rxd2 Bxd4 19. Nxd4 {½-½ (113) Gritsak,O (2497)-Kyc,J (2210) Krakow 2017}) 13... Bxd5 {[%emt 0:17:30]} 14. cxd5 {[%emt 0:01:30]} Nd7 {[%emt 0:03:30]} 15. Bxg7 {[%emt 0:05:30]} Kxg7 {[%emt 0:00:30]} 16. Qd4+ {[%emt 0:00:30]} Kg8 {[%emt 0:00:30]} 17. Rac1 {[%emt 0:11:30]} Qb6 {[%emt 0:02:30]} 18. Qxb6 {[%emt 0:00:30]} Nxb6 {[%emt 0:00:00]} 19. b3 {[%emt 0:06:30]} Rxc1 {[%emt 0:09:00]} 20. Rxc1 {[%emt 0:00:30]} Rc8 {[%emt 0:00:30]} 21. Rxc8+ {[%emt 0:00:30]} Nxc8 {[%emt 0:00:30]} 22. Kf2 {[%emt 0:00:30]} g5 {[%emt 0:00:30]} 23. Ke3 {[%emt 0:00:30]} Kg7 {[%emt 0:00:30]} 24. g3 {[%emt 0:07:30]} Nb6 $11 {[%emt 0:22:53]} 25. Kd4 {[%emt 0:04:30]} Nd7 {[%emt 0:03:35]} 26. f4 {[%emt 0:02:30]} gxf4 {[%emt 0:05:11]} 27. gxf4 {[%emt 0:00:00]} f6 {[%emt 0:04:10]} 28. b4 {[%emt 0:07:00]} Nf8 {[%emt 0:01:08]} 29. Bg4 {[%emt 0:07:30]} Ng6 {[%emt 0:01:41]} 30. Ke3 {[%emt 0:01:30]} Kf7 {[%emt 0:01:12]} 31. Bc8 {[%emt 0:00:45]} b6 {[%emt 0:00:13]} 32. a4 {[%emt 0:00:52]} Ke8 {[%emt 0:00:30]} 33. Bf5 {[%emt 0:02:43]} Kd8 {[%emt 0:03:08]} 34. Bxg6 {[%emt 0:03:15]} hxg6 {[%emt 0:00:06]} 35. h4 {[%emt 0:07:29]} Ke8 {[%emt 0:00:11]} 36. Kf3 {[%emt 0:04:07]} Kf7 {[%emt 0:00:20]} 37. Kg4 {[%emt 0:00:00]} Kg7 {[%emt 0:00:22]} 38. f5 {[%emt 0:03:22]} g5 {[%emt 0:02:23]} 39. hxg5 {[%emt 0:00:30]} fxg5 {[%emt 0:00:30]} 40. Kxg5 {[%emt 0:00:00]} a6 {[%emt 0:00:00]} 41. Kg4 {[%emt 0:02:27]} Kf7 {[%emt 0:01:27]} 42. b5 {[%emt 0:00:30]} a5 {[%emt 0:00:00]} 43. Kf3 {[%emt 0:01:30]} Kg7 {[%emt 0:00:00]} 44. Kf4 {[%emt 0:06:30]} Kf6 {[%emt 0:08:30]} 45. e5+ {[%emt 0:01:30]} Kg7 {[%emt 0:03:30]} 46. exd6 {[%emt 0:07:52]} exd6 {[%emt 0:00:30]} 47. Kg5 {[%emt 0:00:01]} Kf7 {[%emt 0:00:30]} 48. f6 {[%emt 0:00:11]} Kf8 {[%emt 0:00:00]} 49. f7 {[%emt 0:00:52]} Kxf7 {[%emt 0:00:00]} 50. Kf5 {[%emt 0:00:00]} Ke7 {[%emt 0:00:30]} 51. Kg6 {[%emt 0:00:02]} Ke8 {[%emt 0:00:30]} 52. Kf6 {[%emt 0:00:18]} Kd7 {[%emt 0:01:30]} 53. Kf7 {[%emt 0:00:30]} Kd8 {[%emt 0:00:30]} 54. Ke6 {[%emt 0:00:00]} 1-0